[Event "*** SCC Grand Prix: Titled Tuesday Blitz"]
[Site "Chess.com"]
[Date "2020.07.07"]
[Round "7"]
[White "Gloomy_Wanderer"]
[Black "GigaQuparadze"]
[Result "0-1"]
[WhiteElo "2754"]
[BlackElo "2888"]
[TimeControl "180+1"]
[EndTime "11:19:26 PDT"]
[Termination "GigaQuparadze won by resignation"]

1. d4 {[%clk 0:03:00.9]} 1... Nf6 {[%clk 0:02:59.8]} 2. Nf3 {[%clk 0:03:00.7]}
2... e6 {[%clk 0:02:59.9]} 3. c4 {[%clk 0:03:00.9]} 3... b6 {[%clk 0:02:59.6]}
4. g3 {[%clk 0:03:01]} 4... Bb4+ {[%clk 0:02:59]} 5. Bd2 {[%clk 0:03:01]} 5...
c5 {[%clk 0:02:58.8]} 6. Bg2 {[%clk 0:02:53.6]} 6... Bb7 {[%clk 0:02:57.5]} 7.
O-O {[%clk 0:02:53.9]} 7... O-O {[%clk 0:02:57]} 8. Bc3 {[%clk 0:02:51.4]} 8...
a5 {[%clk 0:02:39.9]} 9. a3 {[%clk 0:02:44.9]} 9... Bxc3 {[%clk 0:02:38.8]} 10.
Nxc3 {[%clk 0:02:45.8]} 10... d6 {[%clk 0:02:33.6]} 11. d5 {[%clk 0:02:35.3]}
11... exd5 {[%clk 0:02:29.9]} 12. Nh4 {[%clk 0:02:28.2]} 12... Nbd7 {[%clk
0:02:27.4]} 13. Nxd5 {[%clk 0:02:18.5]} 13... Nxd5 {[%clk 0:02:27.1]} 14. Bxd5
{[%clk 0:02:19.2]} 14... Bxd5 {[%clk 0:02:26.4]} 15. Qxd5 {[%clk 0:02:20.1]}
15... Nf6 {[%clk 0:02:26.5]} 16. Qd3 {[%clk 0:02:17]} 16... d5 {[%clk
0:02:25.6]} 17. cxd5 {[%clk 0:02:16.9]} 17... Qxd5 {[%clk 0:02:25.3]} 18. Qxd5
{[%clk 0:02:17]} 18... Nxd5 {[%clk 0:02:26.2]} 19. Rfd1 {[%clk 0:02:17.1]} 19...
Rad8 {[%clk 0:02:25.5]} 20. Nf5 {[%clk 0:02:10.2]} 20... Rfe8 {[%clk 0:02:24.5]}
21. Rd2 {[%clk 0:02:09.8]} 21... g6 {[%clk 0:02:22.9]} 22. Nh4 {[%clk
0:02:00.1]} 22... Nf6 {[%clk 0:02:14.9]} 23. Rad1 {[%clk 0:01:58]} 23... Rxd2
{[%clk 0:02:14.3]} 24. Rxd2 {[%clk 0:01:58.9]} 24... b5 {[%clk 0:02:13.8]} 25.
f3 {[%clk 0:01:48.2]} 25... c4 {[%clk 0:02:09.8]} 26. Ng2 {[%clk 0:01:47.5]}
26... Rc8 {[%clk 0:02:06.3]} 27. Rc2 {[%clk 0:01:34.1]} 27... Nd5 {[%clk
0:02:00.9]} 28. e4 {[%clk 0:01:32.8]} 28... Nb6 {[%clk 0:02:00.9]} 29. Ne3
{[%clk 0:01:31.5]} 29... Rd8 {[%clk 0:02:01.1]} 30. Kf2 {[%clk 0:01:31.4]} 30...
Rd3 {[%clk 0:02:00.8]} 31. Ke2 {[%clk 0:01:28.9]} 31... Rb3 {[%clk 0:02:00.8]}
32. Nd1 {[%clk 0:01:25.4]} 32... b4 {[%clk 0:01:59]} 33. axb4 {[%clk 0:01:24.8]}
33... axb4 {[%clk 0:01:59.9]} 34. Ne3 {[%clk 0:01:25]} 34... h5 {[%clk
0:01:58.1]} 35. h4 {[%clk 0:01:23.1]} 35... Kg7 {[%clk 0:01:55.6]} 36. Nxc4
{[%clk 0:01:02.9]} 36... Nxc4 {[%clk 0:01:55.2]} 37. Rxc4 {[%clk 0:01:03.5]}
37... Rxb2+ {[%clk 0:01:55.8]} 38. Ke3 {[%clk 0:01:04.1]} 38... Rb3+ {[%clk
0:01:54.5]} 39. Kf4 {[%clk 0:01:03.7]} 39... Rb1 {[%clk 0:01:54.4]} 40. Rc6
{[%clk 0:01:02.9]} 40... b3 {[%clk 0:01:54.4]} 41. Rb6 {[%clk 0:01:03.2]} 41...
b2 {[%clk 0:01:49.6]} 42. Ke5 {[%clk 0:01:02.4]} 42... Rf1 {[%clk 0:01:48.6]}
43. Rxb2 {[%clk 0:01:00]} 43... Rxf3 {[%clk 0:01:48.6]} 44. Rg2 {[%clk
0:01:00.5]} 44... Kh6 {[%clk 0:01:46.2]} 45. Kd6 {[%clk 0:00:43.5]} 45... g5
{[%clk 0:01:44.6]} 46. e5 {[%clk 0:00:38.4]} 46... Kg6 {[%clk 0:01:41.7]} 47.
hxg5 {[%clk 0:00:35.1]} 47... Kxg5 {[%clk 0:01:41.6]} 48. Ke7 {[%clk 0:00:34.9]}
48... Kg4 {[%clk 0:01:40.9]} 49. Rg1 {[%clk 0:00:32.3]} 49... Rf5 {[%clk
0:01:40.8]} 50. Kd6 {[%clk 0:00:29.9]} 50... Rf3 {[%clk 0:01:35.8]} 51. Ke7
{[%clk 0:00:29.6]} 51... Rf2 {[%clk 0:01:35.9]} 52. Kf8 {[%clk 0:00:24.1]} 52...
Rf5 {[%clk 0:01:31.1]} 53. Kg7 {[%clk 0:00:20.3]} 53... Kh3 {[%clk 0:01:28.7]}
54. Kh6 {[%clk 0:00:12.2]} 54... Rxe5 {[%clk 0:01:23.1]} 55. Rf1 {[%clk
0:00:12.4]} 55... Kxg3 {[%clk 0:01:22.9]} 56. Rxf7 {[%clk 0:00:12.6]} 56... h4
{[%clk 0:01:23.2]} 57. Rg7+ {[%clk 0:00:13.1]} 57... Kf4 {[%clk 0:01:21.5]} 58.
Rf7+ {[%clk 0:00:13.6]} 58... Rf5 {[%clk 0:01:20.8]} 59. Ra7 {[%clk 0:00:14.3]}
59... h3 {[%clk 0:01:19.7]} 60. Ra4+ {[%clk 0:00:11.7]} 60... Kg3 {[%clk
0:01:19.2]} 61. Kg6 {[%clk 0:00:11.2]} 61... Rf4 {[%clk 0:01:18.3]} 62. Ra3+
{[%clk 0:00:09.5]} 62... Rf3 {[%clk 0:01:18.4]} 0-1

[Event "*** SCC Grand Prix: Titled Tuesday Blitz"]
[Site "Chess.com"]
[Date "2020.07.07"]
[Round "7"]
[White "xberli"]
[Black "Lion-Al-Messi"]
[Result "0-1"]
[WhiteElo "2304"]
[BlackElo "2453"]
[TimeControl "180+1"]
[EndTime "11:19:26 PDT"]
[Termination "Lion-Al-Messi won on time"]

1. e4 {[%clk 0:03:00.9]} 1... e6 {[%clk 0:02:41.6]} 2. d4 {[%clk 0:03:00.8]}
2... d5 {[%clk 0:02:41.8]} 3. Nc3 {[%clk 0:03:00.8]} 3... Nf6 {[%clk 0:02:41.5]}
4. e5 {[%clk 0:03:00.7]} 4... Nfd7 {[%clk 0:02:41.8]} 5. f4 {[%clk 0:03:01.3]}
5... c5 {[%clk 0:02:42.5]} 6. Nf3 {[%clk 0:03:01.4]} 6... Nc6 {[%clk 0:02:43.1]}
7. Be3 {[%clk 0:03:00.9]} 7... a6 {[%clk 0:02:43.7]} 8. Qd2 {[%clk 0:02:59.9]}
8... b5 {[%clk 0:02:43.9]} 9. Bd3 {[%clk 0:02:58.9]} 9... Qb6 {[%clk 0:02:42.9]}
10. Qf2 {[%clk 0:02:57.3]} 10... cxd4 {[%clk 0:02:36.1]} 11. Nxd4 {[%clk
0:02:58.2]} 11... Bc5 {[%clk 0:02:36]} 12. Nce2 {[%clk 0:02:57.7]} 12... Bb7
{[%clk 0:02:35.3]} 13. O-O-O {[%clk 0:02:47.1]} 13... b4 {[%clk 0:02:29.7]} 14.
Kb1 {[%clk 0:02:41.9]} 14... a5 {[%clk 0:02:29.8]} 15. h4 {[%clk 0:02:34.1]}
15... a4 {[%clk 0:02:29.4]} 16. h5 {[%clk 0:02:33.7]} 16... b3 {[%clk
0:02:24.8]} 17. cxb3 {[%clk 0:02:27.6]} 17... axb3 {[%clk 0:02:25.7]} 18. axb3
{[%clk 0:02:26.6]} 18... Nb4 {[%clk 0:02:17.2]} 19. Bb5 {[%clk 0:02:03.3]} 19...
Qa5 {[%clk 0:01:52.8]} 20. Ba4 {[%clk 0:01:58.2]} 20... Ba6 {[%clk 0:01:33.5]}
21. Qg3 {[%clk 0:01:34.3]} 21... O-O {[%clk 0:00:51.6]} 22. f5 {[%clk
0:01:19.5]} 22... Bd3+ {[%clk 0:00:29.5]} 23. Rxd3 {[%clk 0:01:13.5]} 23... Nxd3
{[%clk 0:00:30.4]} 24. f6 {[%clk 0:01:05.7]} 24... g6 {[%clk 0:00:26.7]} 25.
hxg6 {[%clk 0:00:39.6]} 25... fxg6 {[%clk 0:00:26.7]} 26. Qh3 {[%clk 0:00:14]}
26... Rf7 {[%clk 0:00:20]} 27. Qxe6 {[%clk 0:00:13.4]} 27... N7xe5 {[%clk
0:00:16.3]} 28. Qxd5 {[%clk 0:00:09.1]} 28... Rd8 {[%clk 0:00:12]} 29. Qe4
{[%clk 0:00:06.9]} 29... Bxd4 {[%clk 0:00:10.8]} 30. Nxd4 {[%clk 0:00:06.2]}
30... Qd5 {[%clk 0:00:04]} 31. Qh4 {[%clk 0:00:04]} 31... Nc5 {[%clk 0:00:02.4]}
32. Nb5 {[%clk 0:00:02.4]} 32... Qe4+ {[%clk 0:00:02.6]} 33. Qxe4 {[%clk
0:00:01.8]} 33... Nxe4 {[%clk 0:00:03.5]} 0-1

[Event "*** SCC Grand Prix: Titled Tuesday Blitz"]
[Site "Chess.com"]
[Date "2020.07.07"]
[Round "7"]
[White "SavelievAlexei"]
[Black "Balla_Tamas"]
[Result "1/2-1/2"]
[WhiteElo "2396"]
[BlackElo "2512"]
[TimeControl "180+1"]
[EndTime "11:19:29 PDT"]
[Termination "Game drawn by repetition"]

1. e4 {[%clk 0:02:42.7]} 1... c5 {[%clk 0:02:58.4]} 2. Nf3 {[%clk 0:02:41.8]}
2... e6 {[%clk 0:02:58]} 3. d4 {[%clk 0:02:42.5]} 3... cxd4 {[%clk 0:02:58.1]}
4. Nxd4 {[%clk 0:02:43.4]} 4... a6 {[%clk 0:02:57.2]} 5. c4 {[%clk 0:02:41.7]}
5... Nf6 {[%clk 0:02:56.6]} 6. Nc3 {[%clk 0:02:41.9]} 6... Qc7 {[%clk
0:02:56.8]} 7. Be2 {[%clk 0:02:40.7]} 7... Bb4 {[%clk 0:02:55.4]} 8. Qd3 {[%clk
0:02:38.5]} 8... Nc6 {[%clk 0:02:52.8]} 9. Nxc6 {[%clk 0:02:36.8]} 9... dxc6
{[%clk 0:02:52.2]} 10. O-O {[%clk 0:02:35.6]} 10... e5 {[%clk 0:02:50.2]} 11. f4
{[%clk 0:02:34.8]} 11... O-O {[%clk 0:02:33.5]} 12. fxe5 {[%clk 0:02:34.6]}
12... Bc5+ {[%clk 0:02:33.5]} 13. Kh1 {[%clk 0:02:33.5]} 13... Ng4 {[%clk
0:02:32]} 14. Qg3 {[%clk 0:02:24.7]} 14... Nxe5 {[%clk 0:02:05.7]} 15. Bf4
{[%clk 0:02:23.9]} 15... f6 {[%clk 0:02:05.5]} 16. Na4 {[%clk 0:01:53.4]} 16...
Be7 {[%clk 0:01:58.3]} 17. c5 {[%clk 0:01:52.5]} 17... Be6 {[%clk 0:01:57.7]}
18. b4 {[%clk 0:01:49.1]} 18... Rad8 {[%clk 0:01:56.4]} 19. Rfd1 {[%clk
0:01:33.3]} 19... Rxd1+ {[%clk 0:01:51.4]} 20. Rxd1 {[%clk 0:01:34.2]} 20...
Bxa2 {[%clk 0:01:46.1]} 21. Nb6 {[%clk 0:01:33.9]} 21... Rd8 {[%clk 0:01:37.2]}
22. Rxd8+ {[%clk 0:01:32.6]} 22... Bxd8 {[%clk 0:01:37.2]} 23. Bc4+ {[%clk
0:01:31.3]} 23... Bxc4 {[%clk 0:01:34.7]} 24. Nxc4 {[%clk 0:01:32.2]} 24... Qd7
{[%clk 0:01:32]} 25. Nd6 {[%clk 0:01:32.2]} 25... Nf7 {[%clk 0:01:25.5]} 26. e5
{[%clk 0:01:29.9]} 26... fxe5 {[%clk 0:01:16.6]} 27. Bxe5 {[%clk 0:01:30.8]}
27... Nxd6 {[%clk 0:01:12.8]} 28. cxd6 {[%clk 0:01:16.1]} 28... a5 {[%clk
0:00:49.3]} 29. bxa5 {[%clk 0:00:52.2]} 29... Bxa5 {[%clk 0:00:48.6]} 30. h4
{[%clk 0:00:51.4]} 30... h6 {[%clk 0:00:41.6]} 31. h5 {[%clk 0:00:43.1]} 31...
Bd8 {[%clk 0:00:40.7]} 32. Qg6 {[%clk 0:00:38.6]} 32... Qf7 {[%clk 0:00:35.6]}
33. Qg4 {[%clk 0:00:35.6]} 33... b5 {[%clk 0:00:27.2]} 34. Bd4 {[%clk
0:00:17.8]} 34... b4 {[%clk 0:00:21.1]} 35. Kg1 {[%clk 0:00:18.1]} 35... b3
{[%clk 0:00:20.3]} 36. Qc8 {[%clk 0:00:15.8]} 36... Qf8 {[%clk 0:00:20.1]} 37.
Qe6+ {[%clk 0:00:15.7]} 37... Qf7 {[%clk 0:00:19.5]} 38. Qc8 {[%clk 0:00:15.6]}
38... Qf8 {[%clk 0:00:19.8]} 39. Qe6+ {[%clk 0:00:08]} 39... Kh7 {[%clk
0:00:17.7]} 40. Qg6+ {[%clk 0:00:07.9]} 40... Kg8 {[%clk 0:00:16.9]} 41. Qe6+
{[%clk 0:00:08.1]} 1/2-1/2

[Event "*** SCC Grand Prix: Titled Tuesday Blitz"]
[Site "Chess.com"]
[Date "2020.07.07"]
[Round "7"]
[White "BigAl"]
[Black "Tashik"]
[Result "1-0"]
[WhiteElo "2508"]
[BlackElo "2375"]
[TimeControl "180+1"]
[EndTime "11:19:29 PDT"]
[Termination "BigAl won on time"]

1. e4 {[%clk 0:03:00.9]} 1... Nf6 {[%clk 0:02:59]} 2. Nc3 {[%clk 0:03:00.2]}
2... d5 {[%clk 0:02:57.4]} 3. exd5 {[%clk 0:02:59.6]} 3... Nxd5 {[%clk
0:02:57.3]} 4. Qf3 {[%clk 0:03:00.5]} 4... c6 {[%clk 0:02:56.6]} 5. Bc4 {[%clk
0:02:59.7]} 5... Nf6 {[%clk 0:02:57.1]} 6. d3 {[%clk 0:02:55.3]} 6... Bg4 {[%clk
0:02:42.1]} 7. Qg3 {[%clk 0:02:53.5]} 7... e6 {[%clk 0:02:42.6]} 8. h3 {[%clk
0:02:48]} 8... Bd6 {[%clk 0:02:17.7]} 9. Qh4 {[%clk 0:02:33.3]} 9... Bf5 {[%clk
0:02:12.3]} 10. Nge2 {[%clk 0:02:29.8]} 10... Nbd7 {[%clk 0:02:07.1]} 11. g4
{[%clk 0:01:53.4]} 11... Bg6 {[%clk 0:02:05.4]} 12. f4 {[%clk 0:01:54]} 12...
Nd5 {[%clk 0:01:32.5]} 13. Qxd8+ {[%clk 0:01:50.6]} 13... Rxd8 {[%clk
0:01:33.4]} 14. O-O {[%clk 0:01:49.9]} 14... Bc5+ {[%clk 0:01:21.9]} 15. d4
{[%clk 0:01:42.5]} 15... Bb6 {[%clk 0:01:16.9]} 16. f5 {[%clk 0:01:41]} 16...
exf5 {[%clk 0:01:13.3]} 17. gxf5 {[%clk 0:01:37.8]} 17... Bh5 {[%clk 0:01:06]}
18. Ng3 {[%clk 0:01:30.3]} 18... Bxd4+ {[%clk 0:01:04.2]} 19. Kh1 {[%clk
0:01:30.7]} 19... N5f6 {[%clk 0:00:50.1]} 20. Bg5 {[%clk 0:01:16.1]} 20... O-O
{[%clk 0:00:38.7]} 21. Kg2 {[%clk 0:01:00.5]} 21... Rde8 {[%clk 0:00:30]} 22.
Nxh5 {[%clk 0:00:42.6]} 22... Nxh5 {[%clk 0:00:29.3]} 23. Rad1 {[%clk
0:00:43.3]} 23... Bxc3 {[%clk 0:00:22.5]} 24. Rxd7 {[%clk 0:00:40.4]} 24... Bxb2
{[%clk 0:00:21]} 25. Rxb7 {[%clk 0:00:40.1]} 25... Bd4 {[%clk 0:00:18.8]} 26.
Rd1 {[%clk 0:00:31.1]} 26... c5 {[%clk 0:00:18.4]} 27. c3 {[%clk 0:00:31.6]}
27... Bf6 {[%clk 0:00:14.8]} 28. Bc1 {[%clk 0:00:23.5]} 28... Be5 {[%clk
0:00:13.2]} 29. Rdd7 {[%clk 0:00:22.3]} 29... Bxc3 {[%clk 0:00:06.8]} 30. Bxf7+
{[%clk 0:00:18.8]} 30... Rxf7 {[%clk 0:00:07.3]} 31. Rxf7 {[%clk 0:00:19.5]}
31... Re2+ {[%clk 0:00:04.7]} 32. Kf3 {[%clk 0:00:19.4]} 32... Rh2 {[%clk
0:00:04.1]} 33. Kg4 {[%clk 0:00:16]} 33... Nf6+ {[%clk 0:00:04.3]} 34. Kg3
{[%clk 0:00:15.2]} 34... Be5+ {[%clk 0:00:04.9]} 35. Kf3 {[%clk 0:00:15.7]}
35... Nd5 {[%clk 0:00:04.3]} 36. Rfd7 {[%clk 0:00:12.3]} 36... Rxh3+ {[%clk
0:00:03.8]} 37. Kg2 {[%clk 0:00:11.9]} 37... Rg3+ {[%clk 0:00:04.3]} 38. Kf2
{[%clk 0:00:12.6]} 1-0

[Event "*** SCC Grand Prix: Titled Tuesday Blitz"]
[Site "Chess.com"]
[Date "2020.07.07"]
[Round "7"]
[White "AquivaRubinstein"]
[Black "AndrewDGreen"]
[Result "1-0"]
[WhiteElo "2473"]
[BlackElo "2346"]
[TimeControl "180+1"]
[EndTime "11:19:29 PDT"]
[Termination "AquivaRubinstein won by resignation"]

1. e4 {[%clk 0:03:00.9]} 1... c5 {[%clk 0:02:58.1]} 2. Nf3 {[%clk 0:03:00.7]}
2... g6 {[%clk 0:02:58]} 3. c3 {[%clk 0:02:59.4]} 3... d5 {[%clk 0:02:57.5]} 4.
exd5 {[%clk 0:02:56.6]} 4... Qxd5 {[%clk 0:02:58.4]} 5. d4 {[%clk 0:02:56.7]}
5... Bg7 {[%clk 0:02:58.6]} 6. Be2 {[%clk 0:02:48.9]} 6... cxd4 {[%clk
0:02:57.6]} 7. cxd4 {[%clk 0:02:48.4]} 7... Nf6 {[%clk 0:02:58.2]} 8. Nc3 {[%clk
0:02:48.4]} 8... Qd6 {[%clk 0:02:58.5]} 9. Nb5 {[%clk 0:02:45.2]} 9... Qb6
{[%clk 0:02:56.6]} 10. O-O {[%clk 0:02:32.7]} 10... O-O {[%clk 0:02:55.2]} 11.
d5 {[%clk 0:02:21.6]} 11... Rd8 {[%clk 0:02:22.6]} 12. Be3 {[%clk 0:02:20.1]}
12... Qa5 {[%clk 0:02:22.9]} 13. b4 {[%clk 0:02:16.8]} 13... Qxb4 {[%clk
0:02:09.5]} 14. Nc7 {[%clk 0:02:16.1]} 14... Na6 {[%clk 0:01:59.6]} 15. Nxa8
{[%clk 0:02:04.7]} 15... Nxd5 {[%clk 0:01:56.2]} 16. Rb1 {[%clk 0:01:45.9]}
16... Qa5 {[%clk 0:01:55.9]} 17. Bd2 {[%clk 0:01:30.1]} 17... Qxa2 {[%clk
0:01:43.9]} 18. Qb3 {[%clk 0:01:23.9]} 18... Qxb3 {[%clk 0:01:31.6]} 19. Rxb3
{[%clk 0:01:24.8]} 19... b6 {[%clk 0:01:26.9]} 20. Ra3 {[%clk 0:01:12.7]} 20...
Nc5 {[%clk 0:01:02.5]} 21. Rxa7 {[%clk 0:01:10.7]} 21... Bg4 {[%clk 0:00:57.1]}
22. Bg5 {[%clk 0:01:01]} 22... h6 {[%clk 0:00:54.6]} 23. Bh4 {[%clk 0:01:01.3]}
23... Nc3 {[%clk 0:00:50.6]} 24. Bc4 {[%clk 0:00:45.7]} 24... Bxf3 {[%clk
0:00:49.3]} 25. gxf3 {[%clk 0:00:45.5]} 25... Rd4 {[%clk 0:00:49.9]} 26. Bxf7+
{[%clk 0:00:33.7]} 26... Kxf7 {[%clk 0:00:48.5]} 27. Bxe7 {[%clk 0:00:33.9]}
27... Kg8 {[%clk 0:00:42.3]} 28. Nxb6 {[%clk 0:00:30]} 28... Nd3 {[%clk
0:00:39.6]} 29. Nd7 {[%clk 0:00:24.2]} 29... Ne2+ {[%clk 0:00:35]} 30. Kh1
{[%clk 0:00:23]} 30... Rf4 {[%clk 0:00:30.1]} 31. Kg2 {[%clk 0:00:16.6]} 31...
Rf5 {[%clk 0:00:28.6]} 32. Ra8+ {[%clk 0:00:16.2]} 32... Kh7 {[%clk 0:00:28.4]}
33. Bd6 {[%clk 0:00:15.9]} 33... Rf7 {[%clk 0:00:24.6]} 34. Nc5 {[%clk
0:00:12.9]} 34... Nxc5 {[%clk 0:00:21.2]} 35. Bxc5 {[%clk 0:00:13.8]} 35... Rf5
{[%clk 0:00:21.5]} 36. Be3 {[%clk 0:00:13.1]} 36... h5 {[%clk 0:00:19]} 37. Rd1
{[%clk 0:00:12.8]} 37... Rf7 {[%clk 0:00:14.3]} 38. Rad8 {[%clk 0:00:11.8]}
38... Nc3 {[%clk 0:00:14.1]} 39. R1d7 {[%clk 0:00:11.5]} 39... Rxd7 {[%clk
0:00:12.7]} 40. Rxd7 {[%clk 0:00:11.5]} 40... Kg8 {[%clk 0:00:12]} 41. Rxg7+
{[%clk 0:00:11.4]} 41... Kxg7 {[%clk 0:00:11.6]} 42. Bd4+ {[%clk 0:00:11.6]} 1-0

[Event "*** SCC Grand Prix: Titled Tuesday Blitz"]
[Site "Chess.com"]
[Date "2020.07.07"]
[Round "7"]
[White "Thipsay"]
[Black "plumalka"]
[Result "1/2-1/2"]
[WhiteElo "2521"]
[BlackElo "2405"]
[TimeControl "180+1"]
[EndTime "11:19:30 PDT"]
[Termination "Game drawn by repetition"]

1. e4 {[%clk 0:03:00.9]} 1... c5 {[%clk 0:03:00.1]} 2. Nf3 {[%clk 0:03:00.8]}
2... d6 {[%clk 0:03:00.7]} 3. d4 {[%clk 0:03:00.8]} 3... cxd4 {[%clk 0:03:01.6]}
4. Nxd4 {[%clk 0:03:00.9]} 4... Nf6 {[%clk 0:03:02.1]} 5. Nc3 {[%clk 0:03:00.9]}
5... Bd7 {[%clk 0:03:02.8]} 6. Bc4 {[%clk 0:02:58.9]} 6... Nc6 {[%clk
0:03:00.2]} 7. Be3 {[%clk 0:02:57.5]} 7... g6 {[%clk 0:02:55.6]} 8. h3 {[%clk
0:02:52.9]} 8... Bg7 {[%clk 0:02:55.3]} 9. O-O {[%clk 0:02:52.5]} 9... O-O
{[%clk 0:02:54.3]} 10. Bb3 {[%clk 0:02:49.6]} 10... Rc8 {[%clk 0:02:48.6]} 11.
f4 {[%clk 0:02:48.7]} 11... Na5 {[%clk 0:02:44.8]} 12. Qd3 {[%clk 0:02:41.3]}
12... a6 {[%clk 0:02:40.5]} 13. f5 {[%clk 0:02:38.6]} 13... b5 {[%clk 0:02:37]}
14. Rad1 {[%clk 0:02:35.4]} 14... Nc4 {[%clk 0:02:35.5]} 15. Bc1 {[%clk
0:02:33.7]} 15... Qb6 {[%clk 0:02:33]} 16. Kh2 {[%clk 0:02:31.6]} 16... Ne5
{[%clk 0:02:24.9]} 17. Qe2 {[%clk 0:02:21.2]} 17... Nh5 {[%clk 0:02:00.8]} 18.
Nd5 {[%clk 0:02:11.4]} 18... Qd8 {[%clk 0:01:59]} 19. Bg5 {[%clk 0:02:10.4]}
19... Nf6 {[%clk 0:01:44.5]} 20. fxg6 {[%clk 0:01:31.9]} 20... hxg6 {[%clk
0:01:44.1]} 21. Nxf6+ {[%clk 0:01:28.6]} 21... exf6 {[%clk 0:01:43.8]} 22. Bf4
{[%clk 0:01:27.4]} 22... Qe7 {[%clk 0:01:40.5]} 23. Nf3 {[%clk 0:01:25.6]} 23...
a5 {[%clk 0:01:37.8]} 24. Nxe5 {[%clk 0:01:21.1]} 24... dxe5 {[%clk 0:01:20.5]}
25. Be3 {[%clk 0:01:21]} 25... a4 {[%clk 0:01:18.6]} 26. Bd5 {[%clk 0:01:20.9]}
26... Be6 {[%clk 0:01:19]} 27. b3 {[%clk 0:01:12.8]} 27... Rc3 {[%clk 0:01:16]}
28. Rd3 {[%clk 0:00:53.3]} 28... Rfc8 {[%clk 0:01:10.6]} 29. Rxc3 {[%clk
0:00:47.7]} 29... Rxc3 {[%clk 0:01:11.5]} 30. Qd2 {[%clk 0:00:45.3]} 30... Qc7
{[%clk 0:01:11.1]} 31. Bxe6 {[%clk 0:00:34.3]} 31... fxe6 {[%clk 0:01:12]} 32.
Rf2 {[%clk 0:00:34.6]} 32... f5 {[%clk 0:01:09.3]} 33. Bg5 {[%clk 0:00:33.3]}
33... Kh7 {[%clk 0:01:02.7]} 34. Bd8 {[%clk 0:00:30]} 34... Qc6 {[%clk
0:00:56.5]} 35. Ba5 {[%clk 0:00:10.1]} 35... Rc5 {[%clk 0:00:56.2]} 36. Bb4
{[%clk 0:00:07.4]} 36... Bh6 {[%clk 0:00:56.5]} 37. Qe2 {[%clk 0:00:06.1]} 37...
axb3 {[%clk 0:00:50.9]} 38. axb3 {[%clk 0:00:04.7]} 38... Bf4+ {[%clk
0:00:46.5]} 39. Kh1 {[%clk 0:00:04.7]} 39... Rc3 {[%clk 0:00:41.7]} 40. Bxc3
{[%clk 0:00:04.5]} 40... Qxc3 {[%clk 0:00:42.6]} 41. Rf1 {[%clk 0:00:04.6]}
41... Qg3 {[%clk 0:00:41.5]} 42. Kg1 {[%clk 0:00:03.3]} 42... Qh2+ {[%clk
0:00:38.1]} 43. Kf2 {[%clk 0:00:03.4]} 43... Qg3+ {[%clk 0:00:38.5]} 44. Kg1
{[%clk 0:00:03.4]} 44... Be3+ {[%clk 0:00:35.5]} 45. Kh1 {[%clk 0:00:03.3]}
45... Bf4 {[%clk 0:00:32.3]} 46. Kg1 {[%clk 0:00:03.5]} 1/2-1/2

[Event "*** SCC Grand Prix: Titled Tuesday Blitz"]
[Site "Chess.com"]
[Date "2020.07.07"]
[Round "7"]
[White "Godzillator"]
[Black "Quiet_Desperation"]
[Result "0-1"]
[WhiteElo "2350"]
[BlackElo "2231"]
[TimeControl "180+1"]
[EndTime "11:19:30 PDT"]
[Termination "Quiet_Desperation won by checkmate"]

1. d4 {[%clk 0:03:00.9]} 1... d5 {[%clk 0:02:59.5]} 2. c4 {[%clk 0:03:01.1]}
2... c6 {[%clk 0:03:00]} 3. cxd5 {[%clk 0:03:01.2]} 3... cxd5 {[%clk 0:02:59.1]}
4. Bf4 {[%clk 0:03:01.8]} 4... Nc6 {[%clk 0:02:49.3]} 5. e3 {[%clk 0:03:01.4]}
5... e6 {[%clk 0:02:46.1]} 6. Nc3 {[%clk 0:03:01.3]} 6... Nf6 {[%clk 0:02:37.5]}
7. Bd3 {[%clk 0:03:01.1]} 7... h6 {[%clk 0:02:32.3]} 8. h3 {[%clk 0:03:00.4]}
8... Bd6 {[%clk 0:02:29.1]} 9. Bxd6 {[%clk 0:02:59.2]} 9... Qxd6 {[%clk
0:02:29.3]} 10. Nf3 {[%clk 0:02:59.4]} 10... a6 {[%clk 0:02:27]} 11. Rc1 {[%clk
0:02:58.7]} 11... O-O {[%clk 0:02:26]} 12. a3 {[%clk 0:02:57.9]} 12... e5 {[%clk
0:02:25.8]} 13. dxe5 {[%clk 0:02:57.5]} 13... Nxe5 {[%clk 0:02:26.1]} 14. Nxe5
{[%clk 0:02:57.6]} 14... Qxe5 {[%clk 0:02:26.5]} 15. O-O {[%clk 0:02:57.4]}
15... Qg5 {[%clk 0:02:21.8]} 16. Kh1 {[%clk 0:02:55]} 16... Rd8 {[%clk
0:02:18.3]} 17. Ne2 {[%clk 0:02:53.4]} 17... Qh4 {[%clk 0:02:04.7]} 18. Ng3
{[%clk 0:02:17]} 18... Bxh3 {[%clk 0:01:58.7]} 19. Kg1 {[%clk 0:02:00.4]} 19...
Be6 {[%clk 0:01:48.7]} 20. Bf5 {[%clk 0:01:52.9]} 20... d4 {[%clk 0:01:42.1]}
21. Bxe6 {[%clk 0:01:51.2]} 21... fxe6 {[%clk 0:01:41.4]} 22. Qb3 {[%clk
0:01:47.8]} 22... Ng4 {[%clk 0:01:27.9]} 23. Qxe6+ {[%clk 0:01:47.6]} 23... Kh8
{[%clk 0:01:27.8]} 24. Rfd1 {[%clk 0:01:46.4]} 24... dxe3 {[%clk 0:01:23.3]} 25.
Rxd8+ {[%clk 0:01:14.5]} 25... Rxd8 {[%clk 0:01:20.5]} 26. Rc8 {[%clk
0:01:14.2]} 26... exf2+ {[%clk 0:00:58.7]} 27. Kf1 {[%clk 0:01:14.2]} 27... Rxc8
{[%clk 0:00:31]} 28. Qxc8+ {[%clk 0:01:13.2]} 28... Kh7 {[%clk 0:00:31.6]} 29.
Qf5+ {[%clk 0:01:09.7]} 29... Kg8 {[%clk 0:00:31.5]} 30. Qc8+ {[%clk 0:01:00.4]}
30... Kf7 {[%clk 0:00:30]} 31. Qd7+ {[%clk 0:00:58.3]} 31... Kf8 {[%clk
0:00:22.7]} 32. Qc8+ {[%clk 0:00:51]} 32... Kf7 {[%clk 0:00:20.6]} 33. Qd7+
{[%clk 0:00:50.9]} 33... Qe7 {[%clk 0:00:16.6]} 34. Qf5+ {[%clk 0:00:43.1]}
34... Kg8 {[%clk 0:00:13.3]} 35. Qc8+ {[%clk 0:00:37]} 35... Kh7 {[%clk
0:00:13.5]} 36. Qf5+ {[%clk 0:00:36.6]} 36... g6 {[%clk 0:00:13.8]} 37. Qb1
{[%clk 0:00:32.6]} 37... Qf6 {[%clk 0:00:09]} 38. Nf5 {[%clk 0:00:22.3]} 38...
Qxf5 {[%clk 0:00:08.6]} 39. Qxf5 {[%clk 0:00:20.1]} 39... gxf5 {[%clk
0:00:09.5]} 40. g3 {[%clk 0:00:20.5]} 40... Kg6 {[%clk 0:00:08.3]} 41. Kg2
{[%clk 0:00:20.7]} 41... Kg5 {[%clk 0:00:08.5]} 42. a4 {[%clk 0:00:19.8]} 42...
f4 {[%clk 0:00:08.7]} 43. gxf4+ {[%clk 0:00:19.6]} 43... Kxf4 {[%clk 0:00:08.9]}
44. a5 {[%clk 0:00:20.1]} 44... Ke3 {[%clk 0:00:09.1]} 45. Kf1 {[%clk
0:00:19.4]} 45... Nh2+ {[%clk 0:00:09.5]} 46. Kg2 {[%clk 0:00:19.5]} 46... f1=Q+
{[%clk 0:00:10.4]} 47. Kg3 {[%clk 0:00:19.7]} 47... Qf3+ {[%clk 0:00:10]} 48.
Kh4 {[%clk 0:00:19.9]} 48... Qg4# {[%clk 0:00:10]} 0-1